Cogmind - Beta 16.1 @@@ ROGUE MODE // 2026.03.04 @ 18:15:25 Player: Zable Result: Self-destructed Performance ------------- Evolutions (3) 1500 Regions Visited (8) 1600 Robots Destroyed (105) 525 Value Destroyed (3207) 3207 Prototype IDs (4) 80 Alien Tech Used (0) 0 Bonus (1201) 1201 TOTAL SCORE: 8113 Bonus ------- High Alert Combat Kills 526 Follower Combat Kills 275 Entered Garrisons 400 Cogmind --------- Core Integrity 700/700 Matter 0/300 Energy 123/275 System Corruption 0% Temperature Cool (0) Movement Walking (90) Location -7/Factory Parts ------- > --- POWER (1) -------- Deuterium Engine > --- PROPULSION (4) --- VSS Leg VSS Leg VSS Leg VSS Leg > --- UTILITY (5) ------ Large Storage Unit Visual Processing Unit Energy Filter Improved Propulsion Shielding Improved Medium Armor Plating > --- WEAPON (3) ------- Minigun High-powered Shotgun > --- INVENTORY (15) --- Light Deuterium Engine Titanium Leg Titanium Leg Titanium Leg Titanium Leg Wheel Large Matter Pod (0) Improved Sensor Array System Restoration Module Minigun High-powered Shotgun Advanced Assault Cannon Shock Bomb Launcher Missile Launcher Katana Peak State ------------ > --- POWER ------------ Deuterium Engine > --- PROPULSION ------- VSS Leg VSS Leg VSS Leg VSS Leg > --- UTILITY ---------- Large Storage Unit Visual Processing Unit Transmission Jammer Improved Propulsion Shielding Improved Medium Armor Plating > --- WEAPON ----------- Minigun High-powered Shotgun > --- INVENTORY -------- Light Deuterium Engine Titanium Leg Titanium Leg Titanium Leg Titanium Leg Wheel Large Matter Pod Improved Sensor Array System Restoration Module Minigun High-powered Shotgun Advanced Assault Cannon Shock Bomb Launcher Missile Launcher Katana [Rating: 39] Favorites ----------- Power Cold Fusion Reactor Engine Ion Engine Reactor Cold Fusion Reactor Propulsion Improved Treads Treads Improved Treads Leg VSS Leg Wheel Wheel Utility Large Storage Unit Device Improved Heat Sink Storage Large Storage Unit Processor Visual Processing Unit Protection Improved Medium Armor Plating Weapon Advanced Assault Cannon Energy Gun Improved EM Shotgun Ballistic Gun Improved Assault Rifle Ballistic Cannon Advanced Assault Cannon Launcher Shock Bomb Launcher Special Weapon Mining Laser Impact Weapon Great Maul Build | -11 -10 -9 -9 -9 -8 -8 -8 -7 ------- Run | Yrd Mat Mat Sto Gar Mat Gar Mat Fac Slots Evolved 6 | . . 2 . . 2 . . 2 Power . | . . . . . . . . . Propulsion 2 | . . . . . 1 . . 1 Utility 3 | . . 2 . . 1 . . . Weapon 1 | . . . . . . . . 1 Parts Attached 81 | 4 4 17 8 18 3 3 19 5 Power 7 | . 1 2 1 1 . . 2 . Engine 6 | . 1 2 . 1 . . 2 . Core . | . . . . . . . . . Reactor 1 | . . . 1 . . . . . Propulsion 22 | 2 . 5 . 3 2 1 8 1 Treads 9 | 2 . 5 . 2 . . . . Leg 10 | . . . . . . 1 8 1 Wheel 3 | . . . . 1 2 . . . Hover . | . . . . . . . . . Flight . | . . . . . . . . . Utility 28 | 1 1 5 3 7 1 2 5 3 Device 8 | 1 . 2 1 . 1 . 1 2 Storage 1 | . 1 . . . . . . . Processor 2 | . . 2 . . . . . . Hackware . | . . . . . . . . . Protection 17 | . . 1 2 7 . 2 4 1 Artifact . | . . . . . . . . . Weapon 24 | 1 2 5 4 7 . . 4 1 Energy Gun 4 | . 1 3 . . . . . . Energy Cannon . | . . . . . . . . . Ballistic Gun 11 | 1 1 1 3 3 . . 1 1 Ballistic Cannon 4 | . . . . 2 . . 2 . Launcher 2 | . . . 1 . . . 1 . Special Weapon 1 | . . 1 . . . . . . Impact Weapon 2 | . . . . 2 . . . . Slashing Weapon . | . . . . . . . . . Piercing Weapon . | . . . . . . . . . Special Melee Weapon . | . . . . . . . . . Unidentified Prototypes 2 | . . . 2 . . . . . Parts Lost 32 | . . 2 1 12 2 6 9 . Power 4 | . . 1 . 2 1 . . . Propulsion 9 | . . . . 4 1 3 1 . Utility 14 | . . 1 1 6 . 2 4 . Weapon 5 | . . . . . . 1 4 . Highest Loss Streak 7 | . . 2 1 7 2 2 5 . To Critical Strikes 1 | . . . . 1 . . . . Average Backups 13 | 6 7 13 14 14 14 13 12 14 Power . | 1 1 . 1 . . . . 1 Propulsion 3 | 4 4 4 4 2 . . 3 5 Utility 3 | . . 2 4 4 5 3 2 2 Weapon 6 | 1 2 5 5 6 9 9 6 6 Tool/Special . | . . . . . . . . . Unused Backups 23 | . 2 3 3 3 . . 1 11 Power 3 | . 2 . . . . . . 1 Propulsion 8 | . . 1 1 . . . 1 5 Utility 7 | . . 1 1 2 . . . 3 Weapon 5 | . . 1 1 1 . . . 2 Tool/Special . | . . . . . . . . . Average Slot Usage (%) 90 | . 100 94 100 95 70 72 79 92 Engine 4 | . 14 10 2 2 1 . 6 7 Reactor 3 | . . . 8 6 . . . . Treads 15 | . 28 22 22 21 10 1 . . Leg 3 | . . . . . . 1 16 30 Wheel 1 | . . . . . 3 7 . . Device 7 | . 14 11 11 2 1 9 12 7 Storage 10 | . 14 11 11 11 9 9 9 7 Processor 9 | . . 8 11 11 9 9 9 7 Protection 14 | . . 8 11 18 18 17 8 15 Energy Gun 3 | . 14 11 12 . . . . . Ballistic Gun 7 | . 14 9 9 10 . . 3 14 Ballistic Cannon 6 | . . . . 9 18 13 5 . Impact Weapon 1 | . . . . 2 . 4 2 . Peak Build Rating 39 | 7 7 20 25 27 28 28 34 39 Average Rating 22 | 6 7 13 23 25 25 26 25 37 On Entrance 19 | 6 7 7 20 25 26 28 25 32 Avg Prop Armor Cover (%) 6 | . . . . . 6 6 . . Naked Turns . | . . . . . . . . . Heaviest Build 52 | 11 29 37 48 52 51 47 45 47 Greatest Support 51 | 40 40 46 46 46 40 10 51 48 Greatest Overweight (x) 14 | . . . 1 3 4 4 11 14 Average Overweight (x) 1 | . . . . . 2 4 1 . Largest Inventory Capacity 15 | 8 15 15 15 15 15 15 15 15 Average Capacity 14 | 8 8 15 15 15 15 15 15 15 Most Carried 15 | 7 9 15 15 15 15 15 15 15 Average Carried 13 | 6 7 13 14 14 14 13 12 14 Final Capacity 15 | 8 15 15 15 15 15 15 15 15 Final Carried 15 | 7 9 15 15 14 15 12 15 15 Class Distribution -------------------- 88% | Mutant 6% | Commander-Mutant 4% | Scavenger-Mutant Dominant Class ---------------- Mutant | -10/Materials Mutant | -9/Materials Mutant | -9/Storage Mutant | -9/Garrison Mutant | -8/Materials Mutant | -8/Garrison Mutant | -8/Materials Mutant | -7/Factory Resources | -11 -10 -9 -9 -9 -8 -8 -8 -7 ----------- Run | Yrd Mat Mat Sto Gar Mat Gar Mat Fac Matter Collected 3083 | 244 22 289 264 995 413 435 421 . Remotely . | . . . . . . . . . Salvage Created 3209 | 119 49 605 478 674 225 245 814 . Parts 187 | 11 5 37 28 33 14 20 39 . Haulers Intercepted 3 | . . 2 1 . . . . . Recyclers Shooed 3 | . . . . . . . 3 . Parts Field Recycled . | . . . . . . . . . Retrieved Matter . | . . . . . . . . . Parts Self-Destructed . | . . . . . . . . . Prevented . | . . . . . . . . . Parts Restored . | . . . . . . . . . Kills | -11 -10 -9 -9 -9 -8 -8 -8 -7 ------- Run | Yrd Mat Mat Sto Gar Mat Gar Mat Fac Combat Hostiles Destroyed 83 | . 3 13 8 18 7 20 14 . Melee 6 | . . . . 2 . 4 . . Guns 31 | . 3 13 7 8 . . . . Cannons 34 | . . . . 8 7 15 4 . AOE 7 | . . . 1 . . . 6 . Classes Destroyed 13 | 2 1 5 . 1 2 . 2 . Worker 1 | . . . . . 1 . . . Builder 5 | . . . . . . . 5 . Tunneler 4 | 3 . . . . 1 . . . Hauler 3 | . . 2 1 . . . . . Recycler 2 | 1 . . . . . . 1 . Watcher 6 | . . 2 2 . 1 . 1 . Swarmer 25 | . 3 3 . 4 1 14 . . Grunt 37 | . . 6 6 9 4 4 8 . Brawler 3 | . . 1 . 1 . . 1 . Duelist 4 | . . . . . 1 2 1 . Sentry 13 | . . 3 2 4 1 . 3 . Specialist 1 | . . . . . . . 1 . Behemoth 1 | . . . . 1 . . . . Best Kill Streak 9 | 3 3 6 4 6 3 9 5 . Combat Bots Only 9 | . 3 6 4 6 2 9 3 . Max Kills in Single Turn 2 | 1 1 2 1 1 1 1 2 . Gunslinging 1 | . . 1 . . . . . . Exploded 2 | . . . 1 . . . 2 . Melee 1 | . . . . 1 . 1 . . Uniques/NPCs Destroyed . | . . . . . . . . . Combat | -11 -10 -9 -9 -9 -8 -8 -8 -7 -------- Run | Yrd Mat Mat Sto Gar Mat Gar Mat Fac Hostile Shots Fired 645 | . 18 54 37 192 47 143 148 6 Missed 190 | . 5 15 12 49 14 44 48 3 Hits 455 | . 13 39 25 143 33 99 100 3 Melee 10 | . . . . 3 . 4 3 . Projectile 445 | . 13 39 25 140 33 95 97 3 Critical Strikes 17 | . . 1 . 8 1 . 7 . Damage Taken 6353 | . 101 465 406 2257 478 886 1663 97 Core 844 | . 16 83 73 149 54 100 369 . Absorbed by Shields . | . . . . . . . . . Redirected to Shielding 18 | . . . . . . . 18 . Core Remaining (%) 55 | 100 93 . . 23 . . 4 . Volleys Fired 316 | 6 6 51 32 83 29 43 63 3 Largest 2 | 2 2 2 2 2 2 2 2 1 Hottest 150 | 80 60 150 90 80 80 80 73 25 Shots Fired 548 | 12 12 102 62 163 58 70 66 3 Gun 307 | 12 12 101 60 115 . . 4 3 Cannon 209 | . . . . 48 58 70 33 . Launcher 31 | . . . 2 . . . 29 . Special 1 | . . 1 . . . . . . Kinetic 397 | 4 6 50 6 163 58 70 37 3 Thermal 58 | 6 6 46 . . . . . . Explosive 9 | . . . 2 . . . 7 . Electromagnetic 84 | 2 . 6 54 . . . 22 . Robot Hit Streak 22 | 8 3 11 7 22 7 6 5 1 Robot Miss Streak 6 | 2 3 6 4 4 3 4 5 2 Penetration Max . | . . . . . . . . . Secondary Targets 8 | . . 3 1 4 . . . . Max Gunslinging Chain 1 | . . 1 1 1 . . . . Shots Hit Robots 374 | 8 6 66 41 131 32 44 45 1 Core Hits 169 | 5 5 43 22 36 12 17 29 . Critical Kills 3 | . . 1 . 1 . 1 . . Critical Parts Destroyed 7 | . . . . 4 . 1 1 1 Critical Strikes 18 | . . 1 . 7 3 5 1 1 Destroy 6 | . . 1 . 4 . . . 1 Blast 6 | . . . . . 3 3 . . Smash 6 | . . . . 3 . 2 1 . Melee Attacks 55 | . . . . 21 . 24 10 . Impact 55 | . . . . 21 . 24 10 . Slashing . | . . . . . . . . . Piercing . | . . . . . . . . . Sneak Attacks . | . . . . . . . . . Combat Hostiles . | . . . . . . . . . Follow-up Attacks . | . . . . . . . . . Damage Inflicted 8768 | 91 55 828 936 2402 893 1360 2168 35 Guns 3262 | 91 55 828 702 1511 . . 40 35 Cannons 3085 | . . . . 652 893 953 587 . Explosions 1456 | . . . 234 . . . 1222 . Melee 965 | . . . . 239 . 407 319 . Ramming . | . . . . . . . . . Kinetic 5111 | 34 23 324 59 2163 893 953 627 35 Thermal 735 | 44 32 425 234 . . . . . Explosive 482 | . . . . . . . 482 . Electromagnetic 1475 | 13 . 79 643 . . . 740 . Impact 965 | . . . . 239 . 407 319 . Slashing . | . . . . . . . . . Piercing . | . . . . . . . . . Highest Corruption 3 | . . . . 3 . . . . Average Corruption 3 | . . . . 3 . . . . Corruption Purged . | . . . . . . . . . Corruption Blocked . | . . . . . . . . . Effects 48 | . . . . 48 . . . . Message Errors 15 | . . . . 15 . . . . Matter Fused 12 | . . . . 12 . . . . Heat Flow Errors 6 | . . . . 6 . . . . Energy Discharges 1 | . . . . 1 . . . . Parts Rejected 1 | . . . . 1 . . . . Data Loss (minor) 7 | . . . . 7 . . . . Data Loss (major) 3 | . . . . 3 . . . . Misfires 1 | . . . . 1 . . . . Alerts 2 | . . . . 2 . . . . Overload Shots . | . . . . . . . . . Overflow Damage 404 | . . . 9 58 64 142 131 . Projectiles 155 | . . . . 45 64 39 7 . Explosions 39 | . . . 9 . . . 30 . Melee 210 | . . . . 13 . 103 94 . Knockbacks 34 | . . . . 5 9 15 5 . Impact 3 | . . . . . . 2 1 . Kinetic 30 | . . . . 5 9 12 4 . Secondary 1 | . . . . . . 1 . . Self-Inflicted Damage 150 | . . . 35 . . . 115 . Shots 11 | . . . 2 . . . 9 . Rammed . | . . . . . . . . . Targets Rammed . | . . . . . . . . . Kicked . | . . . . . . . . . Crushed . | . . . . . . . . . Highest Temperature 343 | 40 20 237 142 343 250 . 11 5 Average Temperature 76 | 19 15 72 81 65 144 . 11 5 Received Heat Transfer 1773 | . . 216 138 411 243 36 729 . Effects 3 | . . 1 . 2 . . . . Energy Bleed 1 | . . 1 . . . . . . Interference 2 | . . . . 2 . . . . Siege Activations . | . . . . . . . . . Martial Activations . | . . . . . . . . . Shielding Activations . | . . . . . . . . . Robots Disrupted . | . . . . . . . . . Combat Hostiles . | . . . . . . . . . Robots Corrupted 5 | . . . . . . 1 4 . Combat Hostiles 5 | . . . . . . 1 4 . Parts Fried 11 | . . . 4 1 . 2 4 . Impact Corruptions 9 | . . . . 1 . 5 3 . Robots Melted . | . . . . . . . . . Combat Hostiles . | . . . . . . . . . Parts Melted . | . . . . . . . . . Heat Transferred 1458 | 100 75 933 350 . . . . . Parts Sabotaged . | . . . . . . . . . Parts Stolen . | . . . . . . . . . Parts Stripped . | . . . . . . . . . Power Chain Reactions 5 | . . . 4 . . . 1 . Alert | -11 -10 -9 -9 -9 -8 -8 -8 -7 ------- Run | Yrd Mat Mat Sto Gar Mat Gar Mat Fac Maximum Alert Level 4 | . . . . 4 2 3 2 1 Low Security (%) 36 | 100 100 100 100 11 . . . 3 Level 1 10 | . . . . 15 . . . 96 Level 2 35 | . . . . 44 100 38 100 . Level 3 16 | . . . . 23 . 61 . . Level 4 1 | . . . . 4 . . . . Level 5 . | . . . . . . . . . High Security . | . . . . . . . . . Max Security . | . . . . . . . . . Peak Influence 1226 | 10 75 123 110 1226 689 978 692 307 Initial 597 | . . . 6 . 597 434 476 307 Average 401 | 2 17 48 30 556 641 779 519 242 Influence Increases 3857 | 20 92 400 289 1486 252 604 624 90 Destroy 0b10 Robot/C 1960 | . 60 260 160 660 140 400 280 . Destroy 0b10 Robot/NC 110 | 20 . 20 15 5 15 . 35 . Destroy Leader 298 | . 10 78 46 30 42 20 72 . Allied During Kill 77 | . . . . 77 . . . . Successful Hack 96 | . 7 11 15 14 5 44 . . Disable Machine 165 | . . 30 30 15 . . 90 . Anti-Garrison Action 550 | . . . . 500 . 50 . . Destroy Structure 241 | . . 1 23 65 20 60 72 . Partial Spotted 15 | . . . . . . . 15 . Lose Combat Pursuer 345 | . 15 . . 120 30 30 60 90 Influence Decreases 3630 | 20 92 384 305 260 809 295 926 539 Entered New Map 1745 | . . . 10 . 629 235 502 369 Time Decay 1435 | 20 92 364 295 . 160 . 334 170 Lost Part 310 | . . 20 . 120 20 60 90 . Lost Ally 140 | . . . . 140 . . . . Squads Dispatched 11 | . . 1 4 . 3 . 3 . Investigation 4 | . . 1 3 . . . . . Extermination . | . . . . . . . . . Reinforcement 4 | . . . 1 . . . 3 . Assault . | . . . . . . . . . Garrison 3 | . . . . . 3 . . . Intercept . | . . . . . . . . . Searches Triggered . | . . . . . . . . . Construction Impeded 1 | . . . . . . . 1 . Haulers Reinforced . | . . . . . . . . . Active Scanning Responses . | . . . . . . . . . Cargo Convoy Interrupts . | . . . . . . . . . Stealth | -11 -10 -9 -9 -9 -8 -8 -8 -7 --------- Run | Yrd Mat Mat Sto Gar Mat Gar Mat Fac Distress Signals 9 | . . . . . 1 . 6 2 Communications Jammed . | . . . . . . . . . Distress Signals . | . . . . . . . . . Times Spotted 149 | . 6 20 14 37 11 22 33 6 Peak Tracking Total 8 | . 3 4 3 5 4 8 7 4 Tactical Retreats 19 | . 1 . . 8 2 2 3 3 Traps | -11 -10 -9 -9 -9 -8 -8 -8 -7 ------- Run | Yrd Mat Mat Sto Gar Mat Gar Mat Fac Traps Triggered 14 | . . 1 . 10 . 2 . 1 Indirectly . | . . . . . . . . . Trap Hack Attempts . | . . . . . . . . . Triggered . | . . . . . . . . . Disarmed . | . . . . . . . . . Reprogrammed . | . . . . . . . . . Reused . | . . . . . . . . . Traps Extracted . | . . . . . . . . . Installed . | . . . . . . . . . Triggered . | . . . . . . . . . Machines | -11 -10 -9 -9 -9 -8 -8 -8 -7 ---------- Run | Yrd Mat Mat Sto Gar Mat Gar Mat Fac Machines Disabled 12 | . . 2 2 1 . 1 6 . Max in Single Turn 2 | . . 1 1 1 . 1 2 . Garrison Relay 1 | . . . . . . 1 . . Machines Repaired . | . . . . . . . . . Machines Dismantled . | . . . . . . . . . Machines Sabotaged . | . . . . . . . . . Overloaded Fab Kills . | . . . . . . . . . Hacking | -11 -10 -9 -9 -9 -8 -8 -8 -7 --------- Run | Yrd Mat Mat Sto Gar Mat Gar Mat Fac Machines Accessed 26 | . 2 4 7 4 2 3 3 1 Terminals 22 | . 2 3 6 4 1 3 3 . Fabricators . | . . . . . . . . . Repair Stations . | . . . . . . . . . Recycling Units 1 | . . 1 . . . . . . Scanalyzers . | . . . . . . . . . Garrison Access 3 | . . . 1 . 1 . . 1 Total Hacks 62 | . 8 11 17 5 2 5 12 2 Successful 26 | . 5 6 6 2 2 3 2 . Failed 36 | . 3 5 11 3 . 2 10 2 Catastrophic 6 | . . . . 2 . . 2 2 Database Lockouts . | . . . . . . . . . Manual 22 | . 1 7 1 . 1 . 12 . Terminals 55 | . 8 10 14 5 1 5 12 . Fabricators . | . . . . . . . . . Repair Stations . | . . . . . . . . . Recycling Units 1 | . . 1 . . . . . . Scanalyzers . | . . . . . . . . . Garrison Access 6 | . . . 3 . 1 . . 2 Terminal Hacks 16 | . 4 3 4 2 . 3 . . Prototype ID Bank 1 | . 1 . . . . . . . Open Door 5 | . . . 4 1 . . . . Branch Access Points 2 | . 1 1 . . . . . . Emergency Access Points 2 | . . . . 1 . 1 . . Scanalyzer Index 1 | . . 1 . . . . . . Locate Traps 1 | . 1 . . . . . . . Hauler Manifests 1 | . . 1 . . . . . . Zone Layout 1 | . 1 . . . . . . . Garrison Registry 1 | . . . . . . 1 . . Security Stations 1 | . . . . . . 1 . . Fabricator Hacks . | . . . . . . . . . Repair Station Hacks . | . . . . . . . . . Recycling Unit Hacks 1 | . . 1 . . . . . . Report Inventory 1 | . . 1 . . . . . . Scanalyzer . | . . . . . . . . . Garrison Access Hacks 2 | . . . 1 . 1 . . . Unlock Access 2 | . . . 1 . 1 . . . Unauthorized Hacks 7 | . 1 2 1 . 1 . 2 . Terminals 7 | . 1 2 1 . 1 . 2 . Botnet 7 | . 1 2 1 . 1 . 2 . Fabricators . | . . . . . . . . . Repair Stations . | . . . . . . . . . Recycling Units . | . . . . . . . . . Scanalyzers . | . . . . . . . . . Garrison Access . | . . . . . . . . . Data Cores Recovered . | . . . . . . . . . Used . | . . . . . . . . . Hacking Detections 21 | . 2 3 5 3 1 3 3 1 Full Trace Events 2 | . . . 2 . . . . . Feedback Events . | . . . . . . . . . Feedback Blocked . | . . . . . . . . . Robot Schematics Acquired . | . . . . . . . . . Robots Built . | . . . . . . . . . Authchips . | . . . . . . . . . Time . | . . . . . . . . . Total Robot Build Rating . | . . . . . . . . . Part Schematics Acquired . | . . . . . . . . . Parts Built . | . . . . . . . . . Authchips . | . . . . . . . . . Time . | . . . . . . . . . Total Part Build Rating . | . . . . . . . . . Part Studies Acquired . | . . . . . . . . . Parts Repaired . | . . . . . . . . . Time . | . . . . . . . . . Parts Recycled . | . . . . . . . . . Recycled Matter . | . . . . . . . . . Retrieved Matter . | . . . . . . . . . Retrieved Components . | . . . . . . . . . Parts Scanalyzed . | . . . . . . . . . Part Schematics Acquired . | . . . . . . . . . Parts Damaged . | . . . . . . . . . Bothacking | -11 -10 -9 -9 -9 -8 -8 -8 -7 ------------ Run | Yrd Mat Mat Sto Gar Mat Gar Mat Fac Used RIF Installer . | . . . . . . . . . Robots Hacked . | . . . . . . . . . Non-combat . | . . . . . . . . . Combat . | . . . . . . . . . Robot Hacks Applied . | . . . . . . . . . Relay Couplers Released 3 | . . . . . . 3 . . Machine Destruction 3 | . . . . . . 3 . . Fabnet Peak Effective % . | . . . . . . . . . Robots Rewired 2 | . . . . 2 . . . . Allies Hacked . | . . . . . . . . . Hacks Repelled . | . . . . . . . . . Allies | -11 -10 -9 -9 -9 -8 -8 -8 -7 -------- Run | Yrd Mat Mat Sto Gar Mat Gar Mat Fac Total Allies 12 | . . . 10 2 . . . . Largest Group 10 | . . . 10 10 . . . . Highest-Rated Group 88 | . . . 88 88 . . . . Highest-Rated Ally 31 | . . . 16 31 . . . . Initial Warlord ECA Mod 4 | . . . . . 3 3 4 3 Total Orders . | . . . . . . . . . Ally Attacks 86 | . . . . 86 . . . . Total Damage 991 | . . . . 991 . . . . Kills 17 | . . . . 17 . . . . Allies Corrupted . | . . . . . . . . . Allies Melted . | . . . . . . . . . Intel | -11 -10 -9 -9 -9 -8 -8 -8 -7 ------- Run | Yrd Mat Mat Sto Gar Mat Gar Mat Fac Active Infowar (turns) 7246 | 20 338 1122 828 2516 335 975 757 355 Optics 6599 | . . 833 828 2516 335 975 757 355 Sensors 13 | . . 13 . . . . . . Traps 107 | . . . . . . . 107 . Seismic 1002 | 20 338 644 . . . . . . Jamming 56 | . . . . . . . . 56 Robot Analysis Total . | . . . . . . . . . Derelict Logs Recovered . | . . . . . . . . . Drone Launches . | . . . . . . . . . Drone Recoveries . | . . . . . . . . . Exploration | -11 -10 -9 -9 -9 -8 -8 -8 -7 ------------- Run | Yrd Mat Mat Sto Gar Mat Gar Mat Fac Turns Passed 7317 | 91 338 1122 828 2516 335 975 757 355 Spaces Moved 3136 | 18 197 546 385 918 110 405 271 286 Core 19 | . . . . . . . 16 3 Treads 2096 | 7 197 546 385 917 44 . . . Legs 592 | 11 . . . . . 43 255 283 Wheels 429 | . . . . 1 66 362 . . Hover . | . . . . . . . . . Flight . | . . . . . . . . . Fastest Speed 90 | 120 160 160 160 145 110 140 116 90 Average Speed 183 | 135 160 160 183 232 204 167 195 96 Slowest Speed 750 | 160 160 160 240 240 320 400 600 750 Overloaded Moves . | . . . . . . . . . Propulsion Burnouts . | . . . . . . . . . Robots Hopped . | . . . . . . . . . Potential Cave-ins . | . . . . . . . . . Cave-ins Triggered . | . . . . . . . . . Exploration Rate (%) 37 | 3 36 45 57 78 8 59 37 12 Regions Visited 8 Branch Regions 1 Pre-discovered Areas . | . . . . . . . . . Known Exits Taken 3 | . . 1 1 . 1 . . . Unknown Exits Taken 3 | 1 1 . . . . . 1 . Scrap Searched . | . . . . . . . . . Spaces Dug 8 | . . . 8 . . . . . Terrain Destroyed 117 | . . . 23 2 20 . 72 . Melee . | . . . . . . . . . Projectile 31 | . . . . 2 20 . 9 . AOE 86 | . . . 23 . . . 63 . Terrain Rammed . | . . . . . . . . . Walls Destroyed . | . . . . . . . . . Machines Disabled . | . . . . . . . . . Actions | -11 -10 -9 -9 -9 -8 -8 -8 -7 --------- Run | Yrd Mat Mat Sto Gar Mat Gar Mat Fac Total 4050 | 71 210 699 446 1111 161 586 406 360 Wait 361 | 43 . 62 12 30 17 108 26 63 Move 3126 | 17 196 545 384 915 109 404 270 286 Hop . | . . . . . . . . . Pick Up 43 | 1 1 10 5 13 1 2 9 1 Fast Attach 22 | 1 . 4 . 4 3 . 9 1 Attach 24 | . . 2 1 10 . 5 5 1 Detach 3 | . . 2 . . 1 . . . Swap 48 | 3 4 12 7 10 . . 9 3 Drop 36 | . 3 11 5 9 1 . 5 2 Fire 316 | 6 6 51 32 83 29 43 63 3 Melee 55 | . . . . 21 . 24 10 . Ram . | . . . . . . . . . Kick . | . . . . . . . . . Crush . | . . . . . . . . . Escape Stasis 8 | . . . . 8 . . . . Rewire 8 | . . . . 8 . . . . Trap . | . . . . . . . . . Miscellaneous . | . . . . . . . . . Route ------- -11/Scrapyard -10/Materials (discovered 3 exits: *Mat x2 / Min) -9/Materials (discovered 4 exits: *Mat / Min x2 / *Sto) -9/Storage -9/Garrison (discovered 2 exits: *Mat x2) -8/Materials -8/Garrison (discovered 3 exits: *Mat x3) -8/Materials -7/Factory (discovered 1 exit: [*Low]) History --------- Turn | Location | Event 1 | -11/Scrapyard | Discovered new exit (range 2) 92 | -11/Scrapyard | Entered Materials 306 | -10/Materials | Build established: Mutant 368 | -10/Materials | Discovered new exit (range 15) 381 | -10/Materials | Identified exit to Mines 406 | -10/Materials | Discovered new exit (range 10) 430 | -10/Materials | Entered another Materials area 430 | -9/Materials | Evolved 2 slots: Utility x2 1032 | -9/Materials | Discovered new exit (range 18) 1315 | -9/Materials | Discovered new exit (range 6) 1429 | -9/Materials | Identified exit to Mines 1429 | -9/Materials | Identified exit to Storage 1552 | -9/Materials | Entered Storage 2322 | -9/Storage | Assisted by bots powering up and referring to "LRC-V3" 2377 | -9/Storage | Identified exit to Garrison 2380 | -9/Storage | Entered Garrison 2380 | -9/Garrison | Accompanied by 10 allies 2382 | -9/Garrison | Triggered checkpoint 2432 | -9/Garrison | Lost 3 allies 2558 | -9/Garrison | Triggered checkpoint 2608 | -9/Garrison | Build established: Commander-Mutant 2788 | -9/Garrison | Triggered checkpoint 2793 | -9/Garrison | Triggered checkpoint 2836 | -9/Garrison | Triggered checkpoint 2880 | -9/Garrison | Lost 3 allies 2912 | -9/Garrison | Triggered checkpoint 3106 | -9/Garrison | Triggered checkpoint 3108 | -9/Garrison | Build established: Mutant 3444 | -9/Garrison | Triggered checkpoint 3478 | -9/Garrison | Discovered new exit (range 11) 3746 | -9/Garrison | Spotted B-75 Beast 3757 | -9/Garrison | Core integrity fell below 50% 3853 | -9/Garrison | Destroyed B-75 Beast 3868 | -9/Garrison | Lost 7 parts (2p2n3u) 4090 | -9/Garrison | Attempted to access garrison exit controls, blocked by remote lockdown 4860 | -9/Garrison | Triggered checkpoint 4879 | -9/Garrison | Discovered new exit (range 8) 4896 | -9/Garrison | Entered Materials 4896 | -8/Materials | Evolved 2 slots: Propulsion x1, Utility x1 4943 | -8/Materials | Garrison activated, responded to threat 5229 | -8/Materials | Identified exit to Garrison 5231 | -8/Materials | Entered Garrison 5311 | -8/Garrison | Triggered checkpoint 5381 | -8/Garrison | Destroyed 9 combat bots 5419 | -8/Garrison | Triggered checkpoint 5446 | -8/Garrison | Discovered new exit (range 10) 5463 | -8/Garrison | Triggered checkpoint 5611 | -8/Garrison | Learned Materials security intel 5651 | -8/Garrison | Garrison Relay disabled 5967 | -8/Garrison | Discovered new exit (range 11) 6005 | -8/Garrison | Discovered new exit (range 56) 6005 | -8/Garrison | Discovered new exit (range 71) 6005 | -8/Garrison | Discovered new exit (range 13) 6206 | -8/Garrison | Entered Materials 6407 | -8/Materials | Lost 5 parts (1n2u2w) 6431 | -8/Materials | Core integrity fell below 50% 6723 | -8/Materials | Core integrity fell below 20% 6929 | -8/Materials | Discovered new exit (range 17) 6963 | -8/Materials | Entered Factory 6963 | -7/Factory | Evolved 2 slots: Propulsion x1, Weapon x1 7054 | -7/Factory | Discovered new exit (range 11) 7318 | -7/Factory | Self-destructed Last Messages --------------- 06999_ Connecting with Garrison Access... 06999_ Current location identified: Factory 07054_ EXIT=FOUND 07063_ Dropped Lgt. Armor Plating. 07067_ Dropped Imp. Heat Sink. 07068_ Acquired Transmission Jammer. 07110_ R-06 Scavenger collects Lgt. Armor Plating. 07115_ R-06 Scavenger collects Imp. Heat Sink. 07124_ Acquired Unknown Device. 07124_ Identified Energy Filter. 07129_ R-06 Scavenger collects Transmission Jammer. 07138_ T-07 Excavator suffers critical hit (Destroy). 07138_ Destroyed Mining Laser. 07150_ W-25 Informer sends out distress signal. 07173_ Triggered Heavy Explosive Trap. 07173_ An explosion rips through the floor. 07247_ ALERT: All DSF locations entering lockdown mode. 07306_ W-25 Informer sends out distress signal. 07306_ Slug penetrates Door. 07309_ Slug penetrates Wall. Map ----- +----------------------------------------------------+ | ?????# "" """" # #????????? | | ?????# " """" + ==[ #????????? | | ?????# """" # ==[ #????????? | | ?????# """" # =[[ #????????? | | ?????# """" # ######+#####????????? | | ?????# # """ #???????????????????? | | ?????# # """ #???????????????????? | | ?????# # """ #???????????????????? | | # ############+#### #???????????????????? | | ? #?# #??# +???????????????????? | | """ """ #?# #??# ######???????????????????? | | """ """"" #?# #??# #????????????????????????? | | """ """"" *### #### #????????????????????????? | | # #????????????????????????? | | """ # #????????????????????????? | | """ | # #????????????????????????? | | """ # #????????????????????????? | | | + #????????????????????????? | | # ##############??????????????????? | | +#######+### # = #??????????????????? | | # #??????????????????? | | / """"""" #??????????????????? | | # """"""" !#??????????????????? | | # """"""" #??????????????????? | | # """"""" #??????????????????? | | ########"### # @ #??????????????????? | | # # """"""" #??????????????????? | | "" "" # # """"""" #??????????????????? | | "" "" # # """"""" #??????????????????? | | """ """ + # """"""" #??????????????????? | | ! """ """ # # #??????????????????? | | """ """ # ##############??????????????????? | | ## ######???????????????????????????? | | ## # #???????????????????????????? | | ## # #???????????????????????????? | | ? ## + #####??????###??????????????? | | ? ## # # ?????? #??????????????? | | ? #### # # """??? #??????????????? | | ############??# ###### """""" #??????????????? | | ????????????### ###??# """""" #??????????????? | | ????????????# #??# """""" #??????????????? | | ????????????# #??# #??????????????? | | ????????????# < #??# #??????????????? | | ????????????# #??# ! #??????????????? | | ????????????# #??# [ #??????????????? | | ???????????####+###### !! #??????????????? | | ???????????# # ! #??????????????? | | ???????????# ! # #??????????????? | | ???????????# ## ####????????????????? | | ???????????# """"""" #????????????????? | +----------------------------------------------------+ Best States ------------- Heat Dissipation 50 Coolant Potential 50 Energy Generation 17 Energy Capacity 275 Matter Stores 300 Matter Capacity 300 Sight Range 18 Robot Scan Range 14 Terrain Scan Density 10 Jamming Range 12 Armor Coverage 450 Propulsion Shielding 66 Evasion (%) 57 Recoil Reduction 2 Energy Filtering 30 Item Schematics ----------------- None Robot Schematics ------------------ None Fabricated ------------ Nothing Repaired ---------- Nothing Studied --------- None Alien Tech Used ----------------- None Achievements -------------- Let Me Out Of Here Challenges ------------ None Game ------ Seed HellfireCommRailcannon Manual? 0 Play Time 00:54:29 Cumulative 44.9 hours Start 2026.03.03 @ 19:21:27 End 2026.03.04 @ 18:15:25 Sessions 3 Manual Loads 0 Difficulty Rogue Special Mode None Game No. 61 Rogue 36 Adventurer 25 Explorer 0 Win Type - Total 0 Types 0/0/0/0/0/0/0/0/0/0 Lore% 26 Gallery% 34 Achievement% 28 Wizard Run 0 Options --------- Layout 0 ASCII 0 Keyboard 1 Movement Numpad Keybinds 0 Fullscreen 1 Font 24/Smallcaps Map View 183x50 Zoom Use 0% Tactical HUD 1 Map Filters NONE Filters NONE Steam 1 RUN: a0428000-2f0b-431d-9238-fd7550d9b597